[Event "Titled Tuesday Blitz June 21 Early 2022"]
[White "Rodchenkov, Sergey D."]
[Black "Cramling Bellon, Anna"]
[WhiteFideId "4168712"]
[BlackFideId "32009232"]
[WhiteElo "2293"]
[BlackElo "1905"]
[Result "1-0"]
[Round "03"]
[TimeControl "180+1"]
[Date "2022.06.22"]
[WhiteClock "0:01:15"]
[BlackClock "0:00:01"]

1. e4 {[%clk 0:03:00]}  c5 {[%clk 0:02:58]} 2. Nf3 {[%clk 0:03:01]}  e6 {[%clk 0:02:56]} 3. d4 {[%clk 0:03:01]}  cxd4 {[%clk 0:02:56]} 4. Nxd4 {[%clk 0:03:02]}  Nc6 {[%clk 0:02:56]} 5. Nc3 {[%clk 0:03:01]}  Nf6 {[%clk 0:02:56]} 6. Nxc6 {[%clk 0:03:00]}  bxc6 {[%clk 0:02:55]} 7. e5 {[%clk 0:03:01]}  Nd5 {[%clk 0:02:55]} 8. Ne4 {[%clk 0:03:01]}  Qc7 {[%clk 0:02:50]} 9. f4 {[%clk 0:03:02]}  Qb6 {[%clk 0:02:50]} 10. c4 {[%clk 0:03:01]}  Bb4+ {[%clk 0:02:49]} 11. Ke2 {[%clk 0:03:01]}  f5 {[%clk 0:02:45]} 12. Nf2 {[%clk 0:02:59]}  Ne7 {[%clk 0:02:40]} 13. Be3 {[%clk 0:02:48]}  Bc5 {[%clk 0:02:27]} 14. Bxc5 {[%clk 0:02:45]}  Qxc5 {[%clk 0:02:28]} 15. b3 {[%clk 0:02:46]}  Ng6 {[%clk 0:02:25]} 16. Kf3 {[%clk 0:02:38]}  Nxf4 {[%clk 0:01:03]} 17. b4 {[%clk 0:02:36]}  Qb6 {[%clk 0:01:00]} 18. Qd6 {[%clk 0:02:29]}  Ng6 {[%clk 0:00:52]} 19. Nd3 {[%clk 0:02:20]}  Qb8 {[%clk 0:00:46]} 20. Qd4 {[%clk 0:02:13]}  c5 {[%clk 0:00:43]} 21. Qxc5 {[%clk 0:01:41]}  Bb7+ {[%clk 0:00:42]} 22. Kf2 {[%clk 0:01:41]}  Qd8 {[%clk 0:00:38]} 23. h4 {[%clk 0:01:37]}  Nxh4 {[%clk 0:00:31]} 24. Nf4 {[%clk 0:01:34]}  g5 {[%clk 0:00:27]} 25. Nh5 {[%clk 0:01:30]}  Kf7 {[%clk 0:00:28]} 26. Rd1 {[%clk 0:01:27]}  Rc8 {[%clk 0:00:26]} 27. Qd4 {[%clk 0:01:26]}  Rc7 {[%clk 0:00:12]} 28. c5 {[%clk 0:01:23]}  Qa8 {[%clk 0:00:10]} 29. Rxh4 {[%clk 0:01:16]}  gxh4 {[%clk 0:00:10]} 30. Qxh4 {[%clk 0:01:17]}  Qd8 {[%clk 0:00:10]} 31. Nf6 {[%clk 0:01:17]}  Qe7 {[%clk 0:00:07]} 32. Be2 {[%clk 0:01:17]}  Rg8 {[%clk 0:00:05]} 33. Qxh7+ {[%clk 0:01:14]}  Rg7 {[%clk 0:00:06]} 34. Bh5+ {[%clk 0:01:14]}  Kf8 {[%clk 0:00:05]} 35. Qh8+ {[%clk 0:01:14]}  Rg8 {[%clk 0:00:01]} 36. Qxg8# {[%clk 0:01:15]} 1-0


[Site "https://www.chess.com"]

[Event "Titled Tuesday Blitz June 21 Early 2022"]
[White "Rosenberg, Evan S"]
[Black "Jeet, Jain"]
[WhiteFideId "2019299"]
[BlackFideId "5073022"]
[WhiteElo "2374"]
[BlackElo "2055"]
[Result "1-0"]
[Round "03"]
[TimeControl "180+1"]
[Date "2022.06.22"]
[WhiteClock "0:00:04"]
[BlackClock "0:01:04"]

1. e4 {[%clk 0:03:00]}  c5 {[%clk 0:02:58]} 2. Nc3 {[%clk 0:03:00]}  d6 {[%clk 0:02:54]} 3. f4 {[%clk 0:03:00]}  g6 {[%clk 0:02:50]} 4. Nf3 {[%clk 0:03:00]}  a6 {[%clk 0:02:49]} 5. a4 {[%clk 0:02:52]}  Bg7 {[%clk 0:02:48]} 6. Bc4 {[%clk 0:02:27]}  e6 {[%clk 0:02:47]} 7. d3 {[%clk 0:02:26]}  Ne7 {[%clk 0:02:47]} 8. O-O {[%clk 0:02:21]}  d5 {[%clk 0:02:47]} 9. Ba2 {[%clk 0:02:12]}  O-O {[%clk 0:02:46]} 10. Qe1 {[%clk 0:02:08]}  f5 {[%clk 0:02:30]} 11. Qh4 {[%clk 0:01:44]}  Nbc6 {[%clk 0:02:18]} 12. exd5 {[%clk 0:01:14]}  exd5 {[%clk 0:02:15]} 13. Re1 {[%clk 0:01:14]}  h6 {[%clk 0:02:10]} 14. Ne5 {[%clk 0:00:59]}  Nxe5 {[%clk 0:01:55]} 15. fxe5 {[%clk 0:00:59]}  g5 {[%clk 0:01:56]} 16. Qf2 {[%clk 0:00:45]}  Be6 {[%clk 0:01:54]} 17. Qxc5 {[%clk 0:00:42]}  f4 {[%clk 0:01:51]} 18. Qd6 {[%clk 0:00:35]}  Qc8 {[%clk 0:01:27]} 19. Qxe7 {[%clk 0:00:30]}  f3 {[%clk 0:01:24]} 20. gxf3 {[%clk 0:00:25]}  Rxf3 {[%clk 0:01:21]} 21. Qxe6+ {[%clk 0:00:25]}  Qxe6 {[%clk 0:01:19]} 22. Bxd5 {[%clk 0:00:25]}  Qxd5 {[%clk 0:01:12]} 23. Nxd5 {[%clk 0:00:26]}  Kh8 {[%clk 0:01:12]} 24. d4 {[%clk 0:00:19]}  Rd8 {[%clk 0:01:12]} 25. c4 {[%clk 0:00:17]}  Rd3 {[%clk 0:01:11]} 26. Be3 {[%clk 0:00:15]}  b5 {[%clk 0:01:12]} 27. axb5 {[%clk 0:00:15]}  axb5 {[%clk 0:01:13]} 28. Rad1 {[%clk 0:00:13]}  Rb3 {[%clk 0:01:12]} 29. Nf6 {[%clk 0:00:11]}  bxc4 {[%clk 0:01:11]} 30. Bc1 {[%clk 0:00:08]}  Rf8 {[%clk 0:01:07]} 31. Ne4 {[%clk 0:00:07]}  Rff3 {[%clk 0:01:06]} 32. e6 {[%clk 0:00:06]}  Bf8 {[%clk 0:01:05]} 33. d5 {[%clk 0:00:05]}  Rbd3 {[%clk 0:01:02]} 34. Rxd3 {[%clk 0:00:05]}  Rxd3 {[%clk 0:01:03]} 35. d6 {[%clk 0:00:05]}  Kg7 {[%clk 0:01:01]} 36. e7 {[%clk 0:00:04]}  Bxe7 {[%clk 0:01:01]} 37. dxe7 {[%clk 0:00:05]}  Kf7 {[%clk 0:01:02]} 38. Nd6+ {[%clk 0:00:04]}  Rxd6 {[%clk 0:01:01]} 39. e8=Q+ {[%clk 0:00:04]}  Kg7 {[%clk 0:01:02]} 40. Qe7+ {[%clk 0:00:05]}  Kg6 {[%clk 0:01:02]} 41. Qxd6+ {[%clk 0:00:05]}  Kh5 {[%clk 0:01:03]} 42. Re6 {[%clk 0:00:04]}  g4 {[%clk 0:01:04]} 43. Rxh6# {[%clk 0:00:04]} 1-0


[Site "https://www.chess.com"]

[Event "Titled Tuesday Blitz June 21 Early 2022"]
[White "Rostovtsev, Dmitry"]
[Black "Navara, David"]
[WhiteFideId "34278320"]
[BlackFideId "309095"]
[WhiteElo "2311"]
[BlackElo "2686"]
[Result "0-1"]
[Round "03"]
[TimeControl "180+1"]
[Date "2022.06.21"]
[WhiteClock "0:00:03"]
[BlackClock "0:00:10"]

1. e4 {[%clk 0:03:00]}  c5 {[%clk 0:02:59]} 2. Nf3 {[%clk 0:03:01]}  d6 {[%clk 0:03:00]} 3. d4 {[%clk 0:03:02]}  cxd4 {[%clk 0:03:01]} 4. Qxd4 {[%clk 0:03:02]}  Nf6 {[%clk 0:03:01]} 5. h3 {[%clk 0:03:02]}  a6 {[%clk 0:02:49]} 6. c4 {[%clk 0:03:00]}  Nc6 {[%clk 0:02:49]} 7. Qe3 {[%clk 0:03:00]}  g6 {[%clk 0:02:47]} 8. Nc3 {[%clk 0:03:01]}  Bg7 {[%clk 0:02:48]} 9. Be2 {[%clk 0:03:01]}  O-O {[%clk 0:02:48]} 10. O-O {[%clk 0:03:02]}  Be6 {[%clk 0:02:41]} 11. Rd1 {[%clk 0:03:01]}  Nd7 {[%clk 0:02:40]} 12. b3 {[%clk 0:03:00]}  Nc5 {[%clk 0:02:17]} 13. Bb2 {[%clk 0:02:59]}  a5 {[%clk 0:02:17]} 14. e5 {[%clk 0:02:34]}  Nxe5 {[%clk 0:02:15]} 15. Nd4 {[%clk 0:02:29]}  a4 {[%clk 0:01:59]} 16. b4 {[%clk 0:02:13]}  a3 {[%clk 0:01:58]} 17. Bc1 {[%clk 0:02:13]}  Na4 {[%clk 0:01:57]} 18. Nxa4 {[%clk 0:01:57]}  Rxa4 {[%clk 0:01:58]} 19. Rb1 {[%clk 0:01:36]}  Bxc4 {[%clk 0:01:47]} 20. Bxc4 {[%clk 0:01:32]}  Nxc4 {[%clk 0:01:48]} 21. Qb3 {[%clk 0:01:33]}  Nb6 {[%clk 0:01:48]} 22. Bg5 {[%clk 0:01:29]}  Qd7 {[%clk 0:01:43]} 23. Nf3 {[%clk 0:01:28]}  e6 {[%clk 0:01:35]} 24. Be3 {[%clk 0:01:23]}  Nd5 {[%clk 0:01:35]} 25. Bd4 {[%clk 0:01:22]}  Rxb4 {[%clk 0:01:32]} 26. Qxa3 {[%clk 0:01:23]}  Qa4 {[%clk 0:01:15]} 27. Qxa4 {[%clk 0:01:21]}  Rxa4 {[%clk 0:01:16]} 28. Bxg7 {[%clk 0:01:21]}  Kxg7 {[%clk 0:01:17]} 29. Rxb7 {[%clk 0:01:21]}  Rxa2 {[%clk 0:01:17]} 30. Rd7 {[%clk 0:01:18]}  Nf6 {[%clk 0:00:53]} 31. R7xd6 {[%clk 0:01:14]}  Ne4 {[%clk 0:00:53]} 32. Rd7 {[%clk 0:01:13]}  Nc3 {[%clk 0:00:40]} 33. Re1 {[%clk 0:01:08]}  Kf6 {[%clk 0:00:32]} 34. g4 {[%clk 0:00:59]}  h6 {[%clk 0:00:31]} 35. Kg2 {[%clk 0:00:51]}  g5 {[%clk 0:00:27]} 36. Ne5 {[%clk 0:00:35]}  Ne2 {[%clk 0:00:27]} 37. Nd3 {[%clk 0:00:27]}  Rd2 {[%clk 0:00:27]} 38. Kf3 {[%clk 0:00:26]}  Nf4 {[%clk 0:00:25]} 39. Ke3 {[%clk 0:00:26]}  Rxd3+ {[%clk 0:00:25]} 40. Rxd3 {[%clk 0:00:26]}  Nxd3 {[%clk 0:00:26]} 41. Kxd3 {[%clk 0:00:27]}  Ra8 {[%clk 0:00:26]} 42. Ke4 {[%clk 0:00:22]}  Ra3 {[%clk 0:00:23]} 43. f3 {[%clk 0:00:20]}  h5 {[%clk 0:00:16]} 44. Rf1 {[%clk 0:00:06]}  h4 {[%clk 0:00:16]} 45. f4 {[%clk 0:00:03]}  Ra4+ {[%clk 0:00:12]} 46. Ke3 {[%clk 0:00:03]}  Rxf4 {[%clk 0:00:12]} 47. Rxf4+ {[%clk 0:00:02]}  gxf4+ {[%clk 0:00:13]} 48. Kxf4 {[%clk 0:00:03]}  Kg6 {[%clk 0:00:08]} 49. Ke5 {[%clk 0:00:03]}  Kg5 {[%clk 0:00:08]} 50. Ke4 {[%clk 0:00:03]}  f6 {[%clk 0:00:07]} 51. Ke3 {[%clk 0:00:02]}  f5 {[%clk 0:00:04]} 52. gxf5 {[%clk 0:00:02]}  exf5 {[%clk 0:00:05]} 53. Kf3 {[%clk 0:00:02]}  Kg6 {[%clk 0:00:05]} 54. Kf4 {[%clk 0:00:02]}  Kf6 {[%clk 0:00:05]} 55. Kf3 {[%clk 0:00:02]}  Ke5 {[%clk 0:00:06]} 56. Ke3 {[%clk 0:00:02]}  f4+ {[%clk 0:00:07]} 57. Kf3 {[%clk 0:00:02]}  Kf5 {[%clk 0:00:07]} 58. Kf2 {[%clk 0:00:02]}  Ke4 {[%clk 0:00:08]} 59. Ke2 {[%clk 0:00:03]}  f3+ {[%clk 0:00:08]} 60. Kf2 {[%clk 0:00:03]}  Kf4 {[%clk 0:00:08]} 61. Kf1 {[%clk 0:00:01]}  Kg3 {[%clk 0:00:09]} 62. Kg1 {[%clk 0:00:01]}  Kxh3 {[%clk 0:00:10]} 63. Kh1 {[%clk 0:00:02]}  Kg3 {[%clk 0:00:10]} 64. Kg1 {[%clk 0:00:03]}  f2+ {[%clk 0:00:10]} 65. Kf1 {[%clk 0:00:03]}  h3 {[%clk 0:00:10]} 0-1


[Site "https://www.chess.com"]

[Event "Titled Tuesday Blitz June 21 Early 2022"]
[White "Samaganova, Aleksandra"]
[Black "Gubajdullin, Alexei"]
[WhiteFideId "13800221"]
[BlackFideId "4141202"]
[WhiteElo "1864"]
[BlackElo "2280"]
[Result "0-1"]
[Round "03"]
[TimeControl "180+1"]
[Date "2022.06.22"]
[WhiteClock "0:00:03"]
[BlackClock "0:01:17"]

1. c4 {[%clk 0:03:00]}  Nf6 {[%clk 0:02:48]} 2. Nc3 {[%clk 0:03:00]}  g6 {[%clk 0:02:48]} 3. g3 {[%clk 0:03:00]}  Bg7 {[%clk 0:02:47]} 4. Bg2 {[%clk 0:02:59]}  O-O {[%clk 0:02:47]} 5. e3 {[%clk 0:02:58]}  d6 {[%clk 0:02:46]} 6. Nge2 {[%clk 0:02:56]}  Nc6 {[%clk 0:02:46]} 7. O-O {[%clk 0:02:54]}  Rb8 {[%clk 0:02:46]} 8. d4 {[%clk 0:02:53]}  a6 {[%clk 0:02:46]} 9. Rb1 {[%clk 0:02:47]}  Bd7 {[%clk 0:02:46]} 10. b4 {[%clk 0:02:47]}  b5 {[%clk 0:02:46]} 11. c5 {[%clk 0:02:46]}  dxc5 {[%clk 0:02:41]} 12. bxc5 {[%clk 0:02:46]}  e6 {[%clk 0:02:38]} 13. a4 {[%clk 0:02:44]}  Ne7 {[%clk 0:02:37]} 14. axb5 {[%clk 0:02:42]}  axb5 {[%clk 0:02:37]} 15. Qd3 {[%clk 0:02:38]}  b4 {[%clk 0:02:34]} 16. Ne4 {[%clk 0:02:33]}  Bb5 {[%clk 0:02:31]} 17. Qd2 {[%clk 0:02:31]}  Nxe4 {[%clk 0:02:24]} 18. Bxe4 {[%clk 0:02:30]}  Nd5 {[%clk 0:02:24]} 19. Bxd5 {[%clk 0:01:56]}  Qxd5 {[%clk 0:02:23]} 20. Rxb4 {[%clk 0:01:54]}  Qf3 {[%clk 0:01:55]} 21. Rxb5 {[%clk 0:01:15]}  Rxb5 {[%clk 0:01:54]} 22. Nc3 {[%clk 0:01:11]}  Rb3 {[%clk 0:01:54]} 23. Qc2 {[%clk 0:01:02]}  Rfb8 {[%clk 0:01:53]} 24. Ne2 {[%clk 0:00:46]}  Qf5 {[%clk 0:01:49]} 25. Qc4 {[%clk 0:00:41]}  Qd3 {[%clk 0:01:46]} 26. Qxd3 {[%clk 0:00:40]}  Rxd3 {[%clk 0:01:46]} 27. Nf4 {[%clk 0:00:37]}  Rdb3 {[%clk 0:01:44]} 28. Bd2 {[%clk 0:00:35]}  c6 {[%clk 0:01:44]} 29. Ba5 {[%clk 0:00:35]}  e5 {[%clk 0:01:41]} 30. dxe5 {[%clk 0:00:32]}  Bxe5 {[%clk 0:01:41]} 31. Ng2 {[%clk 0:00:30]}  Rb1 {[%clk 0:01:40]} 32. Bb6 {[%clk 0:00:26]}  Rxf1+ {[%clk 0:01:37]} 33. Kxf1 {[%clk 0:00:26]}  Ra8 {[%clk 0:01:37]} 34. Ke2 {[%clk 0:00:20]}  Ra2+ {[%clk 0:01:36]} 35. Kf3 {[%clk 0:00:20]}  Bc3 {[%clk 0:01:35]} 36. h4 {[%clk 0:00:19]}  Bb4 {[%clk 0:01:34]} 37. g4 {[%clk 0:00:17]}  Rc2 {[%clk 0:01:33]} 38. Nf4 {[%clk 0:00:14]}  Bxc5 {[%clk 0:01:33]} 39. Bd8 {[%clk 0:00:14]}  Bd6 {[%clk 0:01:29]} 40. Ne2 {[%clk 0:00:13]}  c5 {[%clk 0:01:29]} 41. Bf6 {[%clk 0:00:13]}  c4 {[%clk 0:01:27]} 42. Nc3 {[%clk 0:00:13]}  Bf8 {[%clk 0:01:23]} 43. Nd5 {[%clk 0:00:10]}  Bg7 {[%clk 0:01:23]} 44. Be7 {[%clk 0:00:08]}  c3 {[%clk 0:01:21]} 45. Bb4 {[%clk 0:00:06]}  Rc1 {[%clk 0:01:21]} 46. g5 {[%clk 0:00:05]}  c2 {[%clk 0:01:21]} 47. Bd2 {[%clk 0:00:02]}  Rd1 {[%clk 0:01:20]} 48. Ke2 {[%clk 0:00:03]}  Bb2 {[%clk 0:01:17]} 0-1


[Site "https://www.chess.com"]

[Event "Titled Tuesday Blitz June 21 Early 2022"]
[White "Samsonkin, Artiom"]
[Black "So, Wesley"]
[WhiteFideId "13503111"]
[BlackFideId "5202213"]
[WhiteElo "2513"]
[BlackElo "2742"]
[Result "0-1"]
[Round "03"]
[TimeControl "180+1"]
[Date "2022.06.21"]
[WhiteClock "0:00:01"]
[BlackClock "0:00:56"]

1. e4 {[%clk 0:02:56]}  c5 {[%clk 0:02:59]} 2. Nf3 {[%clk 0:02:56]}  d6 {[%clk 0:02:59]} 3. d4 {[%clk 0:02:51]}  cxd4 {[%clk 0:03:00]} 4. Qxd4 {[%clk 0:02:51]}  Nf6 {[%clk 0:02:57]} 5. Be2 {[%clk 0:02:51]}  Nc6 {[%clk 0:02:56]} 6. Qe3 {[%clk 0:02:51]}  g6 {[%clk 0:02:54]} 7. O-O {[%clk 0:02:52]}  Bg7 {[%clk 0:02:51]} 8. c4 {[%clk 0:02:52]}  O-O {[%clk 0:02:49]} 9. Nc3 {[%clk 0:02:53]}  Bg4 {[%clk 0:02:48]} 10. Rb1 {[%clk 0:02:49]}  Nd7 {[%clk 0:02:37]} 11. b3 {[%clk 0:02:45]}  f5 {[%clk 0:02:07]} 12. Bb2 {[%clk 0:02:36]}  f4 {[%clk 0:02:05]} 13. Qd2 {[%clk 0:02:32]}  Bxf3 {[%clk 0:02:05]} 14. Bxf3 {[%clk 0:02:31]}  Nde5 {[%clk 0:02:02]} 15. Qd1 {[%clk 0:01:01]}  Nd4 {[%clk 0:01:53]} 16. Bg4 {[%clk 0:00:54]}  f3 {[%clk 0:01:34]} 17. Bh3 {[%clk 0:00:28]}  fxg2 {[%clk 0:01:32]} 18. Bxg2 {[%clk 0:00:29]}  Nef3+ {[%clk 0:01:23]} 19. Kh1 {[%clk 0:00:30]}  e6 {[%clk 0:01:21]} 20. Ne2 {[%clk 0:00:25]}  Qh4 {[%clk 0:01:08]} 21. h3 {[%clk 0:00:25]}  Nxe2 {[%clk 0:01:04]} 22. Qxe2 {[%clk 0:00:26]}  Bxb2 {[%clk 0:01:03]} 23. Rxb2 {[%clk 0:00:24]}  Rf4 {[%clk 0:00:59]} 24. Rbb1 {[%clk 0:00:15]}  Raf8 {[%clk 0:00:57]} 25. Rbd1 {[%clk 0:00:15]}  Ng5 {[%clk 0:00:57]} 26. Qe3 {[%clk 0:00:14]}  Rf3 {[%clk 0:00:56]} 27. Bxf3 {[%clk 0:00:01]}  Qxh3+ {[%clk 0:00:56]} 0-1


[Site "https://www.chess.com"]

[Event "Titled Tuesday Blitz June 21 Early 2022"]
[White "Shuvalova, Polina"]
[Black "Xu, Yi"]
[WhiteFideId "24171760"]
[BlackFideId "8605564"]
[WhiteElo "2330"]
[BlackElo "2471"]
[Result "1/2-1/2"]
[Round "03"]
[TimeControl "180+1"]
[Date "2022.06.21"]
[WhiteClock "0:00:07"]
[BlackClock "0:00:08"]

1. e4 {[%clk 0:03:00]}  c5 {[%clk 0:03:00]} 2. Nc3 {[%clk 0:03:00]}  d6 {[%clk 0:03:00]} 3. d4 {[%clk 0:02:58]}  cxd4 {[%clk 0:03:00]} 4. Qxd4 {[%clk 0:02:59]}  Nc6 {[%clk 0:03:00]} 5. Qd2 {[%clk 0:02:59]}  g6 {[%clk 0:03:00]} 6. b3 {[%clk 0:03:00]}  Bh6 {[%clk 0:03:01]} 7. f4 {[%clk 0:02:59]}  f5 {[%clk 0:03:01]} 8. Bb2 {[%clk 0:02:51]}  Nf6 {[%clk 0:03:00]} 9. O-O-O {[%clk 0:02:51]}  fxe4 {[%clk 0:02:58]} 10. Bc4 {[%clk 0:02:46]}  Bg4 {[%clk 0:02:43]} 11. Nge2 {[%clk 0:02:43]}  Qa5 {[%clk 0:02:44]} 12. Kb1 {[%clk 0:02:42]}  O-O-O {[%clk 0:02:38]} 13. h3 {[%clk 0:02:39]}  Bxe2 {[%clk 0:02:38]} 14. Qxe2 {[%clk 0:02:27]}  Bxf4 {[%clk 0:02:35]} 15. Nxe4 {[%clk 0:02:16]}  Be5 {[%clk 0:02:25]} 16. Nxf6 {[%clk 0:02:10]}  exf6 {[%clk 0:02:24]} 17. Rd5 {[%clk 0:02:06]}  Qc7 {[%clk 0:02:21]} 18. Rhd1 {[%clk 0:02:06]}  Rhe8 {[%clk 0:02:08]} 19. Qg4+ {[%clk 0:02:06]}  f5 {[%clk 0:02:06]} 20. Qh4 {[%clk 0:02:03]}  Bxb2 {[%clk 0:02:04]} 21. Kxb2 {[%clk 0:02:04]}  Qg7+ {[%clk 0:01:57]} 22. Kb1 {[%clk 0:02:04]}  Kc7 {[%clk 0:01:54]} 23. Qg3 {[%clk 0:02:00]}  Re5 {[%clk 0:01:46]} 24. Bb5 {[%clk 0:01:50]}  Rxd5 {[%clk 0:01:37]} 25. Rxd5 {[%clk 0:01:50]}  a6 {[%clk 0:01:33]} 26. Bxc6 {[%clk 0:01:48]}  bxc6 {[%clk 0:01:33]} 27. Rd1 {[%clk 0:01:45]}  Qe5 {[%clk 0:01:25]} 28. Qh4 {[%clk 0:01:41]}  Rd7 {[%clk 0:01:25]} 29. Qc4 {[%clk 0:01:40]}  Qb5 {[%clk 0:01:19]} 30. Qe6 {[%clk 0:01:33]}  a5 {[%clk 0:01:17]} 31. a4 {[%clk 0:01:32]}  Qb4 {[%clk 0:01:16]} 32. Rd3 {[%clk 0:01:31]}  Qe4 {[%clk 0:01:09]} 33. Qg8 {[%clk 0:01:27]}  Qe1+ {[%clk 0:00:58]} 34. Kb2 {[%clk 0:01:24]}  Qe5+ {[%clk 0:00:54]} 35. Kb1 {[%clk 0:01:23]}  Qe1+ {[%clk 0:00:47]} 36. Kb2 {[%clk 0:01:22]}  Qe5+ {[%clk 0:00:47]} 37. Ka2 {[%clk 0:01:18]}  d5 {[%clk 0:00:32]} 38. Qa8 {[%clk 0:01:15]}  Kb6 {[%clk 0:00:33]} 39. Qc8 {[%clk 0:00:58]}  Re7 {[%clk 0:00:30]} 40. Qd8+ {[%clk 0:00:57]}  Qc7 {[%clk 0:00:30]} 41. Qh8 {[%clk 0:00:52]}  Kb7 {[%clk 0:00:30]} 42. Rd2 {[%clk 0:00:47]}  Qe5 {[%clk 0:00:27]} 43. Qd8 {[%clk 0:00:45]}  Qc7 {[%clk 0:00:28]} 44. Qh8 {[%clk 0:00:42]}  Re4 {[%clk 0:00:26]} 45. Qc3 {[%clk 0:00:39]}  Qb6 {[%clk 0:00:24]} 46. Qg7+ {[%clk 0:00:38]}  Qc7 {[%clk 0:00:24]} 47. Qc3 {[%clk 0:00:38]}  f4 {[%clk 0:00:22]} 48. Qc5 {[%clk 0:00:34]}  Qb6 {[%clk 0:00:21]} 49. Qf8 {[%clk 0:00:32]}  Qc7 {[%clk 0:00:20]} 50. Qc5 {[%clk 0:00:32]}  g5 {[%clk 0:00:15]} 51. Qc3 {[%clk 0:00:30]}  h5 {[%clk 0:00:15]} 52. Qh8 {[%clk 0:00:30]}  h4 {[%clk 0:00:12]} 53. Qf6 {[%clk 0:00:29]}  Qe7 {[%clk 0:00:12]} 54. Qc3 {[%clk 0:00:27]}  Kb6 {[%clk 0:00:12]} 55. Qh8 {[%clk 0:00:24]}  Re3 {[%clk 0:00:11]} 56. Qb8+ {[%clk 0:00:23]}  Qb7 {[%clk 0:00:11]} 57. Qd8+ {[%clk 0:00:23]}  Qc7 {[%clk 0:00:12]} 58. Qxg5 {[%clk 0:00:23]}  Qe5 {[%clk 0:00:10]} 59. Qd8+ {[%clk 0:00:23]}  Kb7 {[%clk 0:00:10]} 60. Qxa5 {[%clk 0:00:20]}  Re1 {[%clk 0:00:10]} 61. c3 {[%clk 0:00:17]}  Re2 {[%clk 0:00:09]} 62. Qb4+ {[%clk 0:00:16]}  Kc7 {[%clk 0:00:08]} 63. Rxe2 {[%clk 0:00:15]}  Qxe2+ {[%clk 0:00:07]} 64. Ka3 {[%clk 0:00:16]}  Qf2 {[%clk 0:00:06]} 65. Qe7+ {[%clk 0:00:15]}  Kb6 {[%clk 0:00:06]} 66. Qd8+ {[%clk 0:00:14]}  Kb7 {[%clk 0:00:06]} 67. Qd7+ {[%clk 0:00:14]}  Kb6 {[%clk 0:00:06]} 68. Qd8+ {[%clk 0:00:11]}  Kb7 {[%clk 0:00:06]} 69. a5 {[%clk 0:00:07]}  Qc5+ {[%clk 0:00:07]} 70. Kb2 {[%clk 0:00:06]}  Qf2+ {[%clk 0:00:07]} 71. Ka3 {[%clk 0:00:06]}  Qc5+ {[%clk 0:00:08]} 72. Kb2 {[%clk 0:00:07]}  Qf2+ {[%clk 0:00:08]} 73. Ka3 {[%clk 0:00:07]} 1/2-1/2


[Site "https://www.chess.com"]

[Event "Titled Tuesday Blitz June 21 Early 2022"]
[White "Silvestre, Christian"]
[Black "Winkels, Marcel"]
[WhiteFideId "30956269"]
[BlackFideId "1003887"]
[WhiteElo "2439"]
[BlackElo "1900"]
[Result "1-0"]
[Round "03"]
[TimeControl "180+1"]
[Date "2022.06.22"]
[WhiteClock "0:00:07"]
[BlackClock "0:00:01"]

1. d4 {[%clk 0:03:00]}  f5 {[%clk 0:02:59]} 2. Nf3 {[%clk 0:02:58]}  Nf6 {[%clk 0:02:58]} 3. g3 {[%clk 0:02:58]}  g6 {[%clk 0:02:58]} 4. Bg2 {[%clk 0:02:59]}  Bg7 {[%clk 0:02:58]} 5. O-O {[%clk 0:02:59]}  O-O {[%clk 0:02:59]} 6. b3 {[%clk 0:03:00]}  d6 {[%clk 0:02:59]} 7. Bb2 {[%clk 0:03:00]}  Qe8 {[%clk 0:02:56]} 8. Nbd2 {[%clk 0:02:58]}  Nc6 {[%clk 0:02:51]} 9. c4 {[%clk 0:02:56]}  e5 {[%clk 0:02:50]} 10. d5 {[%clk 0:02:52]}  Ne7 {[%clk 0:02:39]} 11. Ng5 {[%clk 0:02:39]}  h6 {[%clk 0:02:37]} 12. Ne6 {[%clk 0:02:38]}  Bxe6 {[%clk 0:02:37]} 13. dxe6 {[%clk 0:02:38]}  c6 {[%clk 0:02:37]} 14. c5 {[%clk 0:02:34]}  dxc5 {[%clk 0:02:28]} 15. Bxe5 {[%clk 0:02:28]}  Rd8 {[%clk 0:02:27]} 16. Qc2 {[%clk 0:02:26]}  Ned5 {[%clk 0:02:23]} 17. Qxc5 {[%clk 0:02:14]}  Qxe6 {[%clk 0:02:21]} 18. Nc4 {[%clk 0:01:51]}  b5 {[%clk 0:02:14]} 19. Bxf6 {[%clk 0:01:41]}  Bxf6 {[%clk 0:02:11]} 20. Na5 {[%clk 0:01:39]}  Bxa1 {[%clk 0:01:54]} 21. Rxa1 {[%clk 0:01:40]}  Rc8 {[%clk 0:01:37]} 22. e3 {[%clk 0:01:34]}  Qf6 {[%clk 0:01:32]} 23. Rc1 {[%clk 0:01:27]}  g5 {[%clk 0:01:32]} 24. Nxc6 {[%clk 0:01:22]}  Nb6 {[%clk 0:01:22]} 25. Rd1 {[%clk 0:01:06]}  Kh8 {[%clk 0:01:15]} 26. Rd6 {[%clk 0:01:03]}  Qa1+ {[%clk 0:01:11]} 27. Bf1 {[%clk 0:01:01]}  Qg7 {[%clk 0:01:03]} 28. Qxb5 {[%clk 0:00:54]}  f4 {[%clk 0:00:49]} 29. exf4 {[%clk 0:00:45]}  gxf4 {[%clk 0:00:46]} 30. Ne5 {[%clk 0:00:38]}  Rf6 {[%clk 0:00:35]} 31. Rxf6 {[%clk 0:00:28]}  Qxf6 {[%clk 0:00:34]} 32. Ng4 {[%clk 0:00:27]}  Qg7 {[%clk 0:00:28]} 33. Qh5 {[%clk 0:00:22]}  Rc6 {[%clk 0:00:22]} 34. Qe8+ {[%clk 0:00:18]}  Qg8 {[%clk 0:00:20]} 35. Qxc6 {[%clk 0:00:17]}  Qxg4 {[%clk 0:00:20]} 36. Qxh6+ {[%clk 0:00:16]}  Kg8 {[%clk 0:00:19]} 37. Qxf4 {[%clk 0:00:15]}  Qg7 {[%clk 0:00:18]} 38. Qb8+ {[%clk 0:00:12]}  Kh7 {[%clk 0:00:17]} 39. Bd3+ {[%clk 0:00:12]}  Kh6 {[%clk 0:00:15]} 40. Qf4+ {[%clk 0:00:12]}  Qg5 {[%clk 0:00:14]} 41. Qf8+ {[%clk 0:00:11]}  Kh5 {[%clk 0:00:12]} 42. Be2+ {[%clk 0:00:09]}  Kg6 {[%clk 0:00:12]} 43. Qg8+ {[%clk 0:00:09]}  Kh6 {[%clk 0:00:12]} 44. Qxg5+ {[%clk 0:00:10]}  Kxg5 {[%clk 0:00:12]} 45. Kg2 {[%clk 0:00:11]}  Nd5 {[%clk 0:00:11]} 46. h4+ {[%clk 0:00:11]}  Kh6 {[%clk 0:00:10]} 47. Bd3 {[%clk 0:00:11]}  Nc3 {[%clk 0:00:10]} 48. a4 {[%clk 0:00:11]}  Nd5 {[%clk 0:00:10]} 49. Bc4 {[%clk 0:00:11]}  Nb6 {[%clk 0:00:10]} 50. Kf3 {[%clk 0:00:12]}  a5 {[%clk 0:00:09]} 51. Ke4 {[%clk 0:00:12]}  Nd7 {[%clk 0:00:09]} 52. Kd4 {[%clk 0:00:12]}  Nf6 {[%clk 0:00:10]} 53. Be2 {[%clk 0:00:12]}  Nd7 {[%clk 0:00:09]} 54. g4 {[%clk 0:00:11]}  Kg6 {[%clk 0:00:08]} 55. f4 {[%clk 0:00:11]}  Kf6 {[%clk 0:00:07]} 56. Bd3 {[%clk 0:00:09]}  Nf8 {[%clk 0:00:06]} 57. g5+ {[%clk 0:00:10]}  Kg7 {[%clk 0:00:06]} 58. h5 {[%clk 0:00:10]}  Ne6+ {[%clk 0:00:05]} 59. Ke5 {[%clk 0:00:10]}  Nc5 {[%clk 0:00:05]} 60. Bc4 {[%clk 0:00:10]}  Nd7+ {[%clk 0:00:04]} 61. Kd6 {[%clk 0:00:10]}  Nf8 {[%clk 0:00:04]} 62. Bd3 {[%clk 0:00:10]}  Kf7 {[%clk 0:00:02]} 63. f5 {[%clk 0:00:10]}  Kg7 {[%clk 0:00:02]} 64. Bb5 {[%clk 0:00:08]}  Nh7 {[%clk 0:00:02]} 65. g6 {[%clk 0:00:06]}  Nf6 {[%clk 0:00:01]} 66. Ke5 {[%clk 0:00:07]} 1-0


[Site "https://www.chess.com"]